fUST/lending_fUST_20250214
["ID","MTS","AMOUNT","RATE_DAILY","PERIOD"]
[353073831,1739543433463,-500.0,0.00013698,2]
[353073832,1739543433473,-500.0,0.00013698,2]
[353073833,1739543433485,-500.0,0.00013698,2]
[353073834,1739543433495,-500.0,0.00013698,2]
[353073835,1739543433506,-500.0,0.00013698,2]
[353073836,1739543433516,-485.0155381,0.00013698,2]
[353073837,1739543433525,-500.0,0.00013698,2]
[353073838,1739543433535,-863.05,0.00013698,2]
[353073839,1739543433544,-506.92400394,0.00013698,2]
[353073840,1739543433554,-500.0,0.00013698,2]
[353073841,1739543433564,-500.0,0.00013698,2]
[353073842,1739543433573,-500.0,0.00013698,2]
[353073843,1739543433583,-500.0,0.00013698,2]
[353073844,1739543433593,-1041.31,0.00013698,2]
[353073845,1739543433603,-500.82131053,0.00013698,2]
[353073846,1739543433613,-503.78754432,0.00013698,2]
[353073847,1739543433622,-438.22386094,0.00013698,2]
[353073848,1739543433632,-500.0,0.00013698,2]
[353073849,1739543433642,-500.0,0.00013698,2]
[353073850,1739543433652,-500.0,0.00013698,2]
[353073851,1739543433661,-500.0,0.00013698,2]
[353073852,1739543433671,-500.0,0.00013698,2]
[353073853,1739543433680,-500.0,0.00013698,2]
[353073854,1739543433690,-500.0,0.00013698,2]
[353073855,1739543433703,-500.0,0.00013698,2]
[353073856,1739543433713,-500.51874387,0.00013698,2]
[353073857,1739543433722,-500.0,0.00013698,2]
[353073858,1739543433732,-500.0,0.00013698,2]
[353073859,1739543433742,-500.0,0.00013698,2]
[353073860,1739543433751,-500.0,0.00013698,2]
[353073861,1739543433761,-500.0,0.00013698,2]
[353073862,1739543433772,-501.30693505,0.00013698,2]
[353073863,1739543433781,-502.97426491,0.00013698,2]
[353073864,1739543433791,-500.0,0.00013698,2]
[353073865,1739543433801,-500.0,0.00013698,2]
[353073866,1739543433810,-500.0,0.00013698,2]
[353073867,1739543433820,-500.0,0.00013698,2]
[353073868,1739543433829,-500.0,0.00013698,2]
[353073869,1739543433839,-500.0,0.00013698,2]
[353073870,1739543433848,-500.0,0.00013698,2]
[353073871,1739543433858,-500.0,0.00013698,2]
[353073872,1739543433867,-614.0,0.00013698,2]
[353073873,1739543433878,-500.0,0.00013698,2]
[353073874,1739543433887,-500.0,0.00013698,2]
[353073875,1739543433897,-500.0,0.00013698,2]
[353073876,1739543433906,-500.0,0.00013698,2]
[353073877,1739543433915,-1586.12,0.00013698,2]
[353073878,1739543433925,-23.48716191,0.00013698,2]
[353073879,1739543433944,-353.55846295,0.00013698,2]
[353073880,1739543433953,-500.0,0.00013698,2]
[353073881,1739543433962,-502.47997598,0.00013698,2]
[353073882,1739543433972,-500.0,0.00013698,2]
[353073883,1739543433981,-1723.46,0.00013698,2]
[353073884,1739543433990,-500.0,0.00013698,2]
[353073885,1739543433999,-500.0,0.00013698,2]
[353073886,1739543434011,-500.0,0.00013698,2]
[353073887,1739543434020,-500.0,0.00013698,2]
[353073888,1739543434029,-500.0,0.00013698,2]
[353073889,1739543434039,-868.79,0.00013698,2]
[353073890,1739543434049,-500.0,0.00013698,2]
[353073891,1739543434060,-500.0,0.00013698,2]
[353073892,1739543434070,-144.0536376,0.00013698,2]
[353073897,1739543438306,-7438.69753278,0.00010447,2]
[353073898,1739543438316,-355.9463624,0.00013698,2]
[353073900,1739543438326,-500.0,0.00013698,2]
[353073901,1739543438336,-500.0,0.00013698,2]
[353073902,1739543438345,-629.58710235,0.00013698,2]
[353073903,1739543438355,-500.0,0.00013698,2]
[353073904,1739543438364,-1433.64,0.00013698,2]
[353073905,1739543438374,-500.0,0.00013698,2]
[353073906,1739543438383,-500.0,0.00013698,2]
[353073907,1739543438392,-500.0,0.00013698,2]
[353073909,1739543438402,-526.74,0.00013698,2]
[353073910,1739543438411,-500.0,0.00013698,2]
[353073911,1739543438421,-500.0,0.00013698,2]
[353073912,1739543438430,-500.0,0.00013698,2]
[353073914,1739543438440,-500.0,0.00013698,2]
[353073916,1739543438450,-500.0,0.00013698,2]
[353073918,1739543438460,-500.0,0.00013698,2]
[353073920,1739543438469,-500.0,0.00013698,2]
[353073922,1739543438479,-500.0,0.00013698,2]
[353073923,1739543438489,-500.0,0.00013698,2]
[353073924,1739543438498,-249.58592137,0.00013698,2]
[353073925,1739543438509,-539.40651127,0.00013698,2]
[353073926,1739543438519,-500.0,0.00013698,2]
[353073927,1739543438529,-500.0,0.00013698,2]
[353073928,1739543438538,-500.0,0.00013698,2]
[353073929,1739543438548,-500.0,0.00013698,2]
[353073930,1739543438557,-500.0,0.00013698,2]
[353073931,1739543438567,-500.0,0.00013698,2]
[353073932,1739543438576,-500.0,0.00013698,2]
[353073933,1739543438711,-1615.06,0.00013698,2]
[353073934,1739543438720,-500.0,0.00013698,2]
[353073935,1739543438731,-615.46,0.00013698,2]
[353073936,1739543438740,-500.0,0.00013698,2]
[353073937,1739543438751,-500.0,0.00013698,2]
[353073938,1739543438763,-500.0,0.00013698,2]
[353073939,1739543438772,-321.09939492,0.00013698,2]
[353073940,1739543438782,-500.0,0.00013698,2]
[353073941,1739543438791,-500.0,0.00013698,2]
[353073942,1739543438800,-500.0,0.00013698,2]
[353073943,1739543438809,-500.0,0.00013698,2]
[353073944,1739543438818,-500.0,0.00013698,2]
[353073945,1739543438827,-501.89441168,0.00013698,2]
[353073946,1739543438836,-500.0,0.00013698,2]
[353073947,1739543438849,-500.0,0.00013698,2]
[353073948,1739543438859,-500.0,0.00013698,2]
[353073949,1739543438869,-500.0,0.00013698,2]
[353073950,1739543438879,-500.0,0.00013698,2]
[353073951,1739543438889,-500.0,0.00013698,2]
[353073952,1739543438898,-500.0,0.00013698,2]
[353073953,1739543438907,-500.0,0.00013698,2]
[353073954,1739543438917,-500.0,0.00013698,2]
[353073955,1739543438926,-500.0,0.00013698,2]
[353073956,1739543438935,-500.0,0.00013698,2]
[353073957,1739543438944,-500.0,0.00013698,2]
[353073958,1739543438953,-1337.15,0.00013698,2]
[353073959,1739543438963,-500.0,0.00013698,2]
[353073960,1739543438972,-500.0,0.00013698,2]
[353073961,1739543438982,-502.01205356,0.00013698,2]
[353073962,1739543438991,-500.0,0.00013698,2]
[353073963,1739543439002,-500.0,0.00013698,2]
[353073964,1739543439016,-500.0,0.00013698,2]
[353073965,1739543439026,-500.0,0.00013698,2]
[353073966,1739543439035,-500.0,0.00013698,2]
[353073967,1739543439044,-500.0,0.00013698,2]
[353073968,1739543439054,-502.22045794,0.00013698,2]
[353073969,1739543439063,-500.0,0.00013698,2]
[353073970,1739543439073,-758.43,0.00013698,2]
[353073971,1739543439082,-3967.03,0.00013698,2]
[353073972,1739543439092,-500.0,0.00013698,2]
[353073973,1739543439102,-500.0,0.00013698,2]
[353073974,1739543439111,-500.0,0.00013698,2]
[353073975,1739543439121,-2221.02,0.00013698,2]
[353073976,1739543439130,-502.83772679,0.00013698,2]
[353073977,1739543439140,-500.0,0.00013698,2]
[353073978,1739543439150,-500.0,0.00013698,2]
[353073979,1739543439160,-500.0,0.00013698,2]
[353073980,1739543439170,-7925.89,0.00013698,2]
[353073981,1739543439179,-500.0,0.00013698,2]
[353073982,1739543439189,-500.0,0.00013698,2]
[353073983,1739543439198,-500.0,0.00013698,2]
[353073984,1739543439207,-500.0,0.00013698,2]
[353073985,1739543439217,-500.0,0.00013698,2]
[353073986,1739543439226,-718.91,0.00013698,2]
[353073987,1739543439236,-504.15662806,0.00013698,2]
[353073988,1739543439245,-500.0,0.00013698,2]
[353073989,1739543439254,-500.0,0.00013698,2]
[353073990,1739543439271,-1211.07,0.00013698,2]
[353073991,1739543439281,-500.0,0.00013698,2]
[353073992,1739543439291,-500.0,0.00013698,2]
[353073993,1739543439301,-500.0,0.00013698,2]
[353073994,1739543439310,-500.58289261,0.00013698,2]
[353073995,1739543439320,-500.0,0.00013698,2]
[353073996,1739543439330,-500.0,0.00013698,2]
[353073997,1739543439339,-500.0,0.00013698,2]
[353073998,1739543439349,-741.49,0.00013698,2]
[353073999,1739543439358,-500.0,0.00013698,2]
[353074000,1739543439368,-5210.48,0.00013698,2]
[353074001,1739543439378,-500.0,0.00013698,2]
[353074002,1739543439387,-672.75,0.00013698,2]
[353074003,1739543439396,-500.0,0.00013698,2]
[353074004,1739543439406,-18062.97,0.00013698,2]
[353074005,1739543439415,-500.0,0.00013698,2]
[353074006,1739543439425,-1719.82,0.00013698,2]
[353074007,1739543439434,-3867.58,0.00013698,2]
[353074008,1739543439444,-500.0,0.00013698,2]
[353074009,1739543439453,-500.0,0.00013698,2]
[353074010,1739543439463,-500.0,0.00013698,2]
[353074011,1739543439472,-500.0,0.00013698,2]
[353074012,1739543439482,-500.0,0.00013698,2]
[353074013,1739543439491,-500.0,0.00013698,2]
[353074014,1739543439500,-500.0,0.00013698,2]
[353074015,1739543439514,-500.0,0.00013698,2]
[353074016,1739543439522,-500.0,0.00013698,2]
[353074017,1739543439531,-500.0,0.00013698,2]
[353074018,1739543439541,-500.0,0.00013698,2]
[353074019,1739543439551,-500.0,0.00013698,2]
[353074020,1739543439560,-500.0,0.00013698,2]
[353074021,1739543439570,-500.0,0.00013698,2]
[353074022,1739543439579,-1273.6,0.00013698,2]
[353074023,1739543439589,-500.0,0.00013698,2]
[353074024,1739543439599,-500.0,0.00013698,2]
[353074025,1739543439609,-500.0,0.00013698,2]
[353074026,1739543439619,-500.0,0.00013698,2]
[353074027,1739543439628,-500.0,0.00013698,2]
[353074028,1739543439637,-500.0,0.00013698,2]
[353074029,1739543439647,-503.47191045,0.00013698,2]
[353074030,1739543439657,-2073.55,0.00013698,2]
[353074031,1739543439666,-510.78452865,0.00013698,2]
[353074032,1739543439676,-500.0,0.00013698,2]
[353074033,1739543439686,-500.51122662,0.00013698,2]
[353074034,1739543439698,-2121.62,0.00013698,2]
[353074035,1739543439709,-190.05980403,0.00013698,2]
[353074036,1739543439719,-500.0,0.00013698,2]
[353074037,1739543439729,-1761.8,0.00013698,2]
[353074038,1739543439739,-722.6,0.00013698,2]
[353074039,1739543439749,-500.0,0.00013698,2]
[353074040,1739543439761,-500.0,0.00013698,2]
[353074041,1739543439771,-500.0,0.00013698,2]
[353074042,1739543439782,-500.0,0.00013698,2]
[353074043,1739543439791,-500.0,0.00013698,2]
[353074044,1739543439802,-500.0,0.00013698,2]
[353074045,1739543439811,-500.0,0.00013698,2]
[353074046,1739543439820,-500.0,0.00013698,2]
[353074047,1739543439830,-683.62,0.00013698,2]
[353074048,1739543439840,-501.70973441,0.00013698,2]
[353074049,1739543439850,-683.62,0.00013698,2]
[353074051,1739543439863,-683.62,0.00013698,2]
[353074053,1739543439874,-502.71504357,0.00013698,2]
[353074055,1739543439884,-683.62,0.00013698,2]
[353074057,1739543439894,-500.0,0.00013698,2]
[353074059,1739543439903,-683.62,0.00013698,2]
[353074061,1739543439913,-683.62,0.00013698,2]
[353074063,1739543439923,-500.0,0.00013698,2]
[353074064,1739543439932,-683.62,0.00013698,2]
[353074065,1739543439942,-41321.88,0.00013698,2]
[353074066,1739543439952,-512.23,0.00013698,2]
[353074067,1739543439962,-683.62,0.00013698,2]
[353074068,1739543439971,-683.62,0.00013698,2]
[353074069,1739543439981,-683.62,0.00013698,2]
[353074070,1739543439991,-500.0,0.00013698,2]
[353074071,1739543440000,-1418.28,0.00013698,2]
[353074073,1739543440013,-500.0,0.00013698,2]
[353074074,1739543440023,-1000.0,0.00013698,2]
[353074075,1739543440033,-2485.63,0.00013698,2]
[353074076,1739543440042,-2170.49,0.00013698,2]
[353074077,1739543440052,-1522.54,0.00013698,2]
[353074079,1739543440062,-500.0,0.00013698,2]
[353074080,1739543440072,-512.37,0.00013698,2]
[353074081,1739543440082,-500.0,0.00013698,2]
[353074082,1739543440092,-500.0,0.00013698,2]
[353074083,1739543440101,-520.935007,0.00013698,2]
[353074084,1739543440111,-500.0,0.00013698,2]
[353074085,1739543440120,-1357.74,0.00013698,2]
[353074087,1739543440130,-500.0,0.00013698,2]
[353074088,1739543440139,-500.0,0.00013698,2]
[353074090,1739543440149,-500.0,0.00013698,2]
[353074092,1739543440159,-500.0,0.00013698,2]
[353074094,1739543440168,-500.0,0.00013698,2]
[353074095,1739543440178,-500.0,0.00013698,2]
[353074096,1739543440187,-500.0,0.00013698,2]
[353074097,1739543440197,-500.0,0.00013698,2]
[353074098,1739543440207,-500.0,0.00013698,2]
[353074099,1739543440217,-500.0,0.00013698,2]
[353074100,1739543440226,-500.0,0.00013698,2]
[353074101,1739543440236,-3266.46,0.00013698,2]
[353074102,1739543440245,-504.6760624,0.00013698,2]
[353074103,1739543440254,-615.53,0.00013698,2]
[353074105,1739543440267,-932.38,0.00013698,2]
[353074106,1739543440276,-500.0,0.00013698,2]
[353074108,1739543440286,-500.0,0.00013698,2]
[353074109,1739543440295,-500.0,0.00013698,2]
[353074110,1739543440304,-500.0,0.00013698,2]
[353074111,1739543440314,-506.30246226,0.00013698,2]
[353074112,1739543440324,-500.0,0.00013698,2]
[353074113,1739543440333,-500.0,0.00013698,2]
[353074114,1739543440342,-1818.71,0.00013698,2]
[353074115,1739543440352,-450.15024918,0.00013698,2]
[353074116,1739543440361,-500.0,0.00013698,2]
[353074117,1739543440371,-3629.11,0.00013698,2]
[353074119,1739543440380,-1427.44,0.00013698,2]
[353074120,1739543440390,-500.0,0.00013698,2]
[353074121,1739543440399,-503.34614275,0.00013698,2]
[353074122,1739543440409,-8073.84,0.00013698,2]
[353074123,1739543440419,-500.0,0.00013698,2]
[353074124,1739543440429,-907.96,0.00013698,2]
[353074125,1739543440438,-1744.01,0.00013698,2]
[353074126,1739543440448,-500.0,0.00013698,2]
[353074127,1739543440458,-500.0,0.00013698,2]
[353074128,1739543440468,-529.59,0.00013698,2]
[353074130,1739543440477,-503.34223926,0.00013698,2]
[353074132,1739543440488,-500.48654216,0.00013698,2]
[353074134,1739543440498,-500.0,0.00013698,2]
[353074136,1739543440510,-500.0,0.00013698,2]
[353074137,1739543440519,-500.0,0.00013698,2]
[353074139,1739543440529,-501.14780937,0.00013698,2]
[353074141,1739543440538,-500.0,0.00013698,2]
[353074143,1739543440548,-500.0,0.00013698,2]
[353074144,1739543440558,-500.0,0.00013698,2]
[353074146,1739543440568,-3935.74,0.00013698,2]
[353074147,1739543440578,-500.0,0.00013698,2]
[353074148,1739543440588,-488.62187232,0.00013698,2]
[353074149,1739543440598,-3028.47,0.00013698,2]
[353074150,1739543440607,-500.0,0.00013698,2]
[353074152,1739543440617,-501.13324631,0.00013698,2]
[353074153,1739543440627,-13546.8,0.00013698,2]
[353074155,1739543440636,-500.0,0.00013698,2]
[353074156,1739543440645,-500.0,0.00013698,2]
[353074157,1739543440654,-500.0,0.00013698,2]
[353074158,1739543440664,-3573.63,0.00013698,2]
[353074159,1739543440673,-500.0,0.00013698,2]
[353074160,1739543440683,-1282.31,0.00013698,2]
[353074161,1739543440695,-500.0,0.00013698,2]
[353074162,1739543440705,-592.51,0.00013698,2]
[353074163,1739543440714,-173.00971,0.00013699,2]
[353074164,1739543440723,-294.514232,0.00013699,2]
[353074165,1739543440734,-61802.7015222,0.00013699,2]
[353074166,1739543440744,-150.0,0.00013699,2]
[353074167,1739543440753,-500.0,0.00013699,2]
[353074168,1739543440764,-500.0,0.00013699,2]
[353074169,1739543440774,-500.0,0.00013699,2]
[353074170,1739543440783,-280.0,0.00013699,2]
[353074171,1739543440793,-500.0,0.00013699,2]
[353074172,1739543440802,-500.0,0.00013699,2]
[353074173,1739543440812,-500.0,0.00013699,2]
[353074174,1739543440822,-500.0,0.00013699,2]
[353074175,1739543440831,-500.0,0.00013699,2]
[353074176,1739543440840,-500.0,0.00013699,2]
[353074178,1739543440850,-500.0,0.00013699,2]
[353074179,1739543440859,-500.0,0.00013699,2]
[353074180,1739543440868,-556.32000081,0.00013699,2]
[353074181,1739543440878,-500.0,0.00013699,2]
[353074182,1739543440888,-500.0,0.00013699,2]
[353074183,1739543440897,-500.0,0.00013699,2]
[353074184,1739543440907,-500.0,0.00013699,2]
[353074185,1739543440916,-500.0,0.00013699,2]
[353074186,1739543440925,-500.0,0.00013699,2]
[353074187,1739543440936,-500.0,0.00013699,2]
[353074188,1739543440945,-500.0,0.00013699,2]
[353074189,1739543440955,-500.0,0.00013699,2]
[353074190,1739543440965,-500.0,0.00013699,2]
[353074191,1739543440974,-500.0,0.00013699,2]
[353074192,1739543440984,-500.0,0.00013699,2]
[353074193,1739543440994,-500.0,0.00013699,2]
[353074194,1739543441003,-500.0,0.00013699,2]
[353074195,1739543441013,-500.0,0.00013699,2]
[353074196,1739543441023,-500.0,0.00013699,2]
[353074197,1739543441033,-500.0,0.00013699,2]
[353074198,1739543441042,-500.0,0.00013699,2]
[353074199,1739543441052,-500.0,0.00013699,2]
[353074200,1739543441062,-500.0,0.00013699,2]
[353074201,1739543441072,-500.0,0.00013699,2]
[353074202,1739543441082,-500.0,0.00013699,2]
[353074203,1739543441092,-500.0,0.00013699,2]
[353074204,1739543441102,-500.0,0.00013699,2]
[353074205,1739543441111,-151.0,0.000137,2]
[353074206,1739543441121,-151.0,0.000137,2]
[353074207,1739543441131,-159.37133213,0.000137,2]
[353074208,1739543441141,-159.37133213,0.000137,2]
[353074209,1739543441150,-159.37133213,0.000137,2]
[353074210,1739543441160,-159.37133213,0.000137,2]
[353074211,1739543441169,-159.37133213,0.000137,2]
[353074212,1739543441284,-159.37133213,0.000137,2]
[353074213,1739543441294,-159.37133213,0.000137,2]
[353074214,1739543441303,-159.37133213,0.000137,2]
[353074215,1739543441313,-159.37,0.000137,2]
[353074216,1739543441324,-309.333032,0.00013726,2]
[353074217,1739543441334,-215.860309,0.00013726,2]
[353074218,1739543441345,-309.3154038,0.00013726,2]
[353074219,1739543441354,-1420.55364761,0.00013745,2]
[353074220,1739543441364,-500.8459099,0.00013773,2]
[353074221,1739543441374,-500.0,0.00013773,2]
[353074222,1739543441384,-500.0,0.00013777,2]
[353074223,1739543441394,-683.62,0.00013778,2]
[353074224,1739543441404,-500.0,0.00013779,2]
[353074225,1739543441415,-500.0,0.00013779,2]
[353074226,1739543441424,-286.66,0.00013779,2]
[353074227,1739543441435,-683.62,0.00013779,2]
[353074228,1739543441445,-683.62,0.00013779,2]
[353074229,1739543441454,-683.62,0.00013779,2]
[353074230,1739543441464,-683.62,0.00013779,2]
[353074231,1739543441473,-683.62,0.00013779,2]
[353074232,1739543441483,-683.62,0.00013779,2]
[353074233,1739543441493,-683.62,0.00013779,2]
[353074234,1739543441503,-683.62,0.00013779,2]
[353074235,1739543441517,-501.42280111,0.0001378,2]
[353074236,1739543441526,-500.0,0.0001378,2]
[353074237,1739543441536,-501.27627951,0.0001378,2]
[353074238,1739543441545,-500.0,0.0001378,2]
[353074239,1739543441555,-500.0,0.0001378,2]
[353074240,1739543441565,-500.0,0.0001378,2]
[353074241,1739543441577,-500.0,0.0001378,2]
[353074242,1739543441587,-740.19,0.0001378,2]
[353074243,1739543441597,-500.0,0.0001378,2]
[353074244,1739543441607,-690.32,0.0001378,2]
[353074245,1739543441616,-621.95,0.0001378,2]
[353074246,1739543441625,-174.74641207,0.0001378,2]
[353074247,1739543441635,-500.0,0.0001378,2]
[353074248,1739543441645,-500.0,0.0001378,2]
[353074249,1739543441654,-500.0,0.0001378,2]
[353074250,1739543441664,-500.0,0.0001378,2]
[353074251,1739543441674,-500.0,0.0001378,2]
[353074252,1739543441684,-863.05,0.0001378,2]
[353074253,1739543441694,-298.84362855,0.0001378,2]
[353074254,1739543441709,-500.0,0.0001378,2]
[353074255,1739543441719,-1041.31,0.0001378,2]
[353074256,1739543441728,-500.0,0.0001378,2]
[353074257,1739543441738,-500.0,0.0001378,2]
[353074258,1739543441748,-500.0,0.0001378,2]
[353074259,1739543441757,-500.0,0.0001378,2]
[353074260,1739543441770,-500.0,0.0001378,2]
[353074261,1739543441782,-500.0,0.0001378,2]
[353074262,1739543441791,-500.0,0.0001378,2]
[353074263,1739543441800,-500.0,0.0001378,2]
[353074264,1739543441809,-178.61536,0.0001378,2]
[353074265,1739543441819,-500.0,0.0001378,2]
[353074266,1739543441829,-500.0,0.0001378,2]
[353074267,1739543441838,-614.0,0.0001378,2]
[353074268,1739543441847,-500.0,0.0001378,2]
[353074269,1739543441857,-500.0,0.0001378,2]
[353074270,1739543441866,-1586.12,0.0001378,2]
[353074271,1739543441875,-500.0,0.0001378,2]
[353074272,1739543441885,-1723.46,0.0001378,2]
[353074273,1739543441894,-500.0,0.0001378,2]
[353074274,1739543441904,-500.0,0.0001378,2]
[353074275,1739543441913,-868.79,0.0001378,2]
[353074276,1739543441923,-500.0,0.0001378,2]
[353074277,1739543441932,-500.0,0.0001378,2]
[353074278,1739543441942,-500.0,0.0001378,2]
[353074279,1739543441952,-1433.64,0.0001378,2]
[353074280,1739543441962,-500.0,0.0001378,2]
[353074281,1739543441971,-500.0,0.0001378,2]
[353074282,1739543441980,-500.0,0.0001378,2]
[353074283,1739543441990,-526.74,0.0001378,2]
[353074284,1739543442000,-500.0,0.0001378,2]
[353074285,1739543442011,-500.0,0.0001378,2]
[353074286,1739543442021,-500.0,0.0001378,2]
[353074287,1739543442031,-223.99599155,0.0001378,2]
[353074288,1739543442041,-432.35824208,0.0001378,2]
[353074289,1739543442051,-500.0,0.0001378,2]
[353074290,1739543442060,-500.0,0.0001378,2]
[353074291,1739543442070,-500.0,0.0001378,2]
[353074292,1739543442080,-500.0,0.0001378,2]
[353074293,1739543442090,-500.0,0.0001378,2]
[353074294,1739543442100,-1615.06,0.0001378,2]
[353074295,1739543442110,-615.46,0.0001378,2]
[353074296,1739543442119,-500.0,0.0001378,2]
[353074297,1739543442129,-275.57954545,0.0001378,2]
[353074298,1739543442139,-359.64086363,0.0001378,2]
[353074299,1739543442149,-500.0,0.0001378,2]
[353074300,1739543442158,-500.0,0.0001378,2]
[353074301,1739543442168,-500.0,0.0001378,2]
[353074302,1739543442177,-500.0,0.0001378,2]
[353074303,1739543442186,-512.87525425,0.0001378,2]
[353074304,1739543442197,-500.0,0.0001378,2]
[353074305,1739543442206,-500.0,0.0001378,2]
[353074306,1739543442216,-500.00000036,0.0001378,2]
[353074307,1739543442225,-1337.15,0.0001378,2]
[353074308,1739543442235,-500.0,0.0001378,2]
[353074309,1739543442245,-502.70344585,0.0001378,2]
[353074310,1739543442255,-500.0,0.0001378,2]
[353074311,1739543442266,-500.0,0.0001378,2]
[353074312,1739543442275,-500.0,0.0001378,2]
[353074313,1739543442285,-500.0,0.0001378,2]
[353074314,1739543442295,-500.0,0.0001378,2]
[353074315,1739543442309,-758.43,0.0001378,2]
[353074316,1739543442318,-3967.03,0.0001378,2]
[353074317,1739543442328,-500.0,0.0001378,2]
[353074318,1739543442338,-2221.02,0.0001378,2]
[353074319,1739543442347,-267.17055502,0.0001378,2]
[353074320,1739543442357,-500.0,0.0001378,2]
[353074321,1739543442366,-531.27983975,0.0001378,2]
[353074322,1739543442376,-7925.89,0.0001378,2]
[353074323,1739543442386,-500.0,0.0001378,2]
[353074324,1739543442396,-500.0,0.0001378,2]
[353074325,1739543442406,-500.0,0.0001378,2]
[353074326,1739543442416,-718.91,0.0001378,2]
[353074327,1739543442425,-1211.07,0.0001378,2]
[353074328,1739543442435,-500.0,0.0001378,2]
[353074329,1739543442445,-500.0,0.0001378,2]
[353074330,1739543442454,-741.49,0.0001378,2]
[353074331,1739543442464,-500.0,0.0001378,2]
[353074332,1739543442473,-5210.48,0.0001378,2]
[353074333,1739543442483,-500.0,0.0001378,2]
[353074334,1739543442493,-672.75,0.0001378,2]
[353074335,1739543442502,-500.0,0.0001378,2]
[353074336,1739543442516,-18062.97,0.0001378,2]
[353074337,1739543442527,-1719.82,0.0001378,2]
[353074338,1739543442536,-3867.58,0.0001378,2]
[353074339,1739543442546,-428.35306669,0.0001378,2]
[353074340,1739543442555,-500.0,0.0001378,2]
[353074341,1739543442565,-500.0,0.0001378,2]
[353074342,1739543442575,-500.0,0.0001378,2]
[353074343,1739543442584,-1273.6,0.0001378,2]
[353074344,1739543442594,-500.0,0.0001378,2]
[353074345,1739543442603,-2073.55,0.0001378,2]
[353074346,1739543442613,-261.31716949,0.0001378,2]
[353074347,1739543442622,-2121.62,0.0001378,2]
[353074348,1739543442632,-500.0,0.0001378,2]
[353074349,1739543442641,-1761.8,0.0001378,2]
[353074350,1739543442650,-722.6,0.0001378,2]
[353074351,1739543442659,-500.0,0.0001378,2]
[353074352,1739543442669,-500.0,0.0001378,2]
[353074353,1739543442678,-255.98084442,0.0001378,2]
[353074354,1739543442687,-500.0,0.0001378,2]
[353074355,1739543442706,-500.0,0.0001378,2]
[353074356,1739543442721,-500.0,0.0001378,2]
[353074357,1739543442731,-500.0,0.0001378,2]
[353074358,1739543442740,-500.0,0.0001378,2]
[353074359,1739543442750,-41321.88,0.0001378,2]
[353074360,1739543442761,-512.23,0.0001378,2]
[353074361,1739543442771,-500.0,0.0001378,2]
[353074362,1739543442780,-1418.28,0.0001378,2]
[353074364,1739543442790,-2485.63,0.0001378,2]
[353074365,1739543442799,-2170.49,0.0001378,2]
[353074366,1739543442808,-1522.54,0.0001378,2]
[353074367,1739543442818,-512.37,0.0001378,2]
[353074368,1739543442828,-500.0,0.0001378,2]
[353074369,1739543442837,-500.0,0.0001378,2]